[Event "GRENKE Chess Classic 2024"]
[Site "Karlsruhe"]
[Date "2024.03.27"]
[Round "4.3"]
[White "Ding, Liren"]
[Black "Keymer, Vincent"]
[Result "1/2-1/2"]
[ECO "E21"]
[WhiteElo "2762"]
[BlackElo "2738"]
[Annotator "TA"]
[PlyCount "118"]
[EventDate "2024.03.26"]
[EventType "tourn"]
[EventCountry "GER"]
[SourceTitle "playchess.com"]
[Source "ChessBase"]
[SourceQuality "1"]
[TimeControl "2700+10"]

{[%evp 64,118,0,0,0,-165,-217,-212,-208,-221,-220,-206,-196,-361,-361,-336,-330,-660,-655,-29969,-29972,-29972,-29972,-29969,-29967,-29949,-35,-35,-35,-35,-35,-35,-35,-35,-35,-35,-35,-38,-39,-39,-39,-47,0,0,0,-33,-33,-39,0,0,0,0,0,0,0,0,0]} 1. d4 {[%emt 0:00:02]} Nf6 {[%emt 0:00:01]} 2. c4 {[%emt 0:00:02]} e6 {[%emt 0:00:02]} 3. Nc3 {[%emt 0:00:01]} Bb4 {[%emt 0:00:01]} 4. Nf3 {[%emt 0:00:02]} d6 {[%emt 0:00:28]} 5. Qc2 {[%emt 0:03:11]} O-O {[%emt 0:00:04]} 6. Bd2 {[%emt 0:01:01]} b6 {[%emt 0:01:02] E32: Nimzo-Indian: Classical (4 Qc2): 4...0-0.} 7. e4 {[%emt 0:01:14]} c5 {[%emt 0:00:03]} 8. a3 {[%emt 0:03:26]} Bxc3 {[%emt 0:00:01]} 9. Bxc3 {[%emt 0:00:01]} cxd4 {[%emt 0:00:02]} 10. Nxd4 {[%emt 0:00:06]} e5 {[%emt 0:00:01] has lost popularity (10...Bb7).} 11. Nf5 {[%emt 0:09:04]} Bxf5 {[%emt 0:03:23]} 12. exf5 {[%emt 0:00:01]} Nc6 {[%emt 0:00:02]} 13. O-O-O $146 {[%emt 0:00:08]} ({Predecessor:} 13. Rd1 Qc7 14. Bd3 Rac8 15. O-O Na5 16. b3 d5 17. Rfe1 Rfe8 18. Qb2 d4 19. Bxa5 bxa5 {½-½ Turczynski,M (2276)-Stolz,S (2257) W-ch WS/M/231 email 2009}) 13... Rc8 {[%emt 0:01:12]} 14. Qd3 {[%emt 0:00:41]} Qc7 {[%emt 0:08:47]} 15. Qxd6 {[%emt 0:02:45]} Qxd6 {[%emt 0:00:03]} 16. Rxd6 {[%emt 0:00:01]} Ne4 {[%emt 0:00:01]} 17. Rd7 {[%emt 0:00:17]} Nxc3 {[%emt 0:07:53]} 18. bxc3 {[%emt 0:00:01]} Rfd8 {[%emt 0:00:01]} 19. Rxd8+ {[%emt 0:01:34]} Nxd8 {[%emt 0:00:01]} 20. Be2 {[%emt 0:01:38]} Kf8 {[%emt 0:00:04]} 21. Rd1 {[%emt 0:03:12]} Ke7 {[%emt 0:00:02]} 22. Rd5 {[%emt 0:00:01]} f6 {[%emt 0:00:03]} 23. Kc2 {[%emt 0:02:29]} Nb7 {[%emt 0:00:07]} 24. Kb3 {[%emt 0:00:01]} Nc5+ {[%emt 0:02:46]} 25. Kb4 {[%emt 0:00:27]} Rd8 {[%emt 0:03:17]} 26. a4 {[%emt 0:03:24]} Ne4 {[%emt 0:02:31]} 27. f3 {[%emt 0:03:26]} a5+ {[%emt 0:00:01]} 28. Kb3 {[%emt 0:00:05]} Nc5+ {[%emt 0:00:02]} 29. Ka3 {[%emt 0:00:01]} Rd6 {[%emt 0:00:20]} 30. Bd1 {[%emt 0:00:02]} Na6 {[%emt 0:06:43]} 31. Bc2 {[%emt 0:01:20]} Nc7 {[%emt 0:00:02]} 32. Rxd6 {[%emt 0:00:03]} Kxd6 {[%emt 0:00:01]} 33. Be4 {[%emt 0:00:45]} Na6 {[%emt 0:00:14]} 34. g4 $2 {[%emt 0:00:42]} (34. Bd5 $11) 34... Nc5 $19 {[%emt 0:00:19]} 35. h4 {[%emt 0:01:15]} h5 {[%emt 0:01:49]} 36. gxh5 {[%emt 0:00:05]} Ke7 {[%emt 0:00:37]} 37. Bc6 {[%emt 0:04:24] [#]} e4 $1 {[%emt 0:02:02]} 38. fxe4 $2 {[%emt 0:00:22]} (38. Bxe4 Kd6 39. Bc2) 38... Kd6 $19 {[%emt 0:00:02]} 39. Bd5 {[%emt 0:01:45]} Ke5 {[%emt 0:00:01]} 40. Bc6 $2 {[%emt 0:00:01]} (40. Bf7) 40... Nxe4 $19 {[%emt 0:00:40]} 41. Bxe4 {[%emt 0:00:01]} Kxe4 {[%emt 0:00:01]} 42. Kb3 {[%emt 0:00:01]} Kxf5 {[%emt 0:00:23]} 43. c5 {[%emt 0:00:00]} bxc5 {[%emt 0:00:01]} 44. Kc4 {[%emt 0:00:01]} Ke4 $2 {[%emt 0:00:03]} (44... Kg4 {mates} 45. Kxc5 f5 46. c4 f4 47. Kb6 f3 (47... Kxh4 48. c5 $11) 48. Kxa5 f2 (48... Kxh5 $2 49. c5 $19) 49. h6 gxh6 (49... f1=B $2 50. h7 $18) (49... f1=Q $2 50. c5 $19) 50. Kb5 f1=Q (50... f1=B $2 51. a5 $19) 51. a5 Qd3 (51... Kxh4 52. Kc5 Kg4 53. a6 h5 54. a7 Qg1+ 55. Kd6 Qb6+ 56. Ke5 Qxa7 57. Kd6 h4 58. c5 h3 59. c6 h2 60. c7 Qb7 61. Ke6 h1=Q 62. Ke5 Qxc7+ 63. Kd4 Qd1+ 64. Ke4 Qf4#) 52. Kb4 Qb1+ (52... Kxh4 53. a6 Qd7 54. Kc5 Kg4 55. Kb6 h5 56. c5 Qc8 57. c6 h4 58. Kc5 h3 59. Kd4 h2 60. a7 h1=Q 61. a8=B Qxa8 62. Ke3 Qaxc6 63. Kd3 Qhf3+ 64. Kd4 Qfe4#) 53. Kc5 Qf5+ (53... Kxh4 54. Kd6 Qd3+ 55. Kc5 Kg3 56. a6 Qb3 57. a7 Qb7 58. Kd6 Qa6+ 59. Ke7 Qxa7+ 60. Kd6 Qd4+ 61. Ke7 Qxc4 62. Kf6 Kf4 63. Ke7 Kf5 64. Kd7 Ke5 65. Ke8 Qc7 66. Kf8 Kf6 67. Kg8 Qg7#) 54. Kd6 Qf8+ (54... Qxa5 55. c5 Kxh4 56. c6 Qd8+ 57. Kc5 Qc7 58. Kd5 h5 59. Ke6 Qxc6+ 60. Ke5 Kg4 61. Kd4 h4 62. Ke5 h3 63. Kd4 h2 64. Kd3 h1=Q 65. Kd2 Qhc1+ 66. Ke2 Qf3#) 55. Kd5 Kxh4 56. Kc6 Qc8+ 57. Kd6 Qxc4 58. Ke5 Qc7+ 59. Kf5 Qxa5+ 60. Ke4 Kg3 61. Kd3 Kf3 62. Kc2 Ke2 63. Kb3 Kd3 64. Kb2 Qa4 65. Kb1 Kc3 66. Kc1 Qc2#) 45. Kxc5 $15 {[%emt 0:00:35]} f5 {[%emt 0:00:01]} 46. c4 $1 {[%emt 0:00:01]} f4 {[%emt 0:00:02]} 47. Kb6 $1 {[%emt 0:00:01]} f3 {[%emt 0:00:02]} 48. c5 $1 {[%emt 0:00:01]} f2 {[%emt 0:00:03]} 49. c6 $1 {[%emt 0:00:01]} f1=Q {[%emt 0:00:01]} 50. c7 $1 {[%emt 0:00:01]} Qf5 {[%emt 0:07:17]} 51. Kb7 $1 {[%emt 0:00:02]} Qd7 {[%emt 0:00:01]} (51... Qxh5 52. c8=Q) 52. Kb8 {[%emt 0:00:03]} Qd6 {[%emt 0:00:01]} (52... Qxa4 $15 {deserves consideration.} 53. c8=Q Qb4+ (53... Qb3+ 54. Ka7 $17) 54. Ka8 Kf3) 53. Kb7 $1 $11 {[%emt 0:00:02]} Qd7 {[%emt 0:00:08]} 54. Kb8 {[%emt 0:00:01]} Qxa4 {[%emt 0:00:43]} 55. c8=Q Qd4 {[%emt 0:00:19]} 56. Qg4+ {[%emt 0:00:30]} Kd5 {[%emt 0:00:01]} 57. Qd7+ {[%emt 0:00:09]} Ke4 {[%emt 0:00:25]} 58. Qg4+ {[%emt 0:00:02]} Kd5 {[%emt 0:00:13]} 59. Qd7+ $1 {[%emt 0:00:01]} Ke4 {[%emt 0:00:02]} 1/2-1/2

[Event "GRENKE Chess Classic 2024"]
[Site "Karlsruhe"]
[Date "2024.03.28"]
[Round "5.1"]
[White "Vachier-Lagrave, Maxime"]
[Black "Rapport, Richard"]
[Result "1-0"]
[ECO "C18"]
[WhiteElo "2728"]
[BlackElo "2720"]
[Annotator "TA"]
[PlyCount "139"]
[EventDate "2024.03.26"]
[EventType "tourn"]
[EventCountry "GER"]
[SourceTitle "playchess.com"]
[Source "ChessBase"]
[SourceQuality "1"]
[TimeControl "2700+10"]

{[%evp 14,139,37,0,0,0,0,2,39,11,37,0,17,16,18,14,10,0,0,0,0,10,24,32,8,14,43,14,85,76,71,74,72,70,89,81,73,35,107,6,0,9,7,-50,-51,-52,-48,-67,-57,-69,-33,-42,0,-56,-47,-62,-42,-68,-43,-45,-49,-57,-54,-57,-57,-81,-77,-34,-28,-52,-28,-11,-12,-13,185,192,192,192,175,200,195,212,202,100,88,104,1279,324,308,307,331,265,259,236,276,231,266,260,251,204,447,203,236,214,470,457,957,945,1009,749,1511,1345,1659,1581,1375,691,2094,1779,1858,2214,29970,29971,29975,29976,29980,29980,29984,29984]} 1. e4 {[%emt 0:00:04]} e6 {[%emt 0:00:28]} 2. d4 {[%emt 0:00:18]} d5 {[%emt 0:00:02]} 3. Nc3 {[%emt 0:00:02]} Bb4 {[%emt 0:00:03]} 4. e5 {[%emt 0:00:02]} c5 {[%emt 0:00:02]} 5. a3 {[%emt 0:00:01]} Bxc3+ {[%emt 0:00:02]} 6. bxc3 {[%emt 0:00:01]} Ne7 {[%emt 0:00:03]} 7. Qg4 {[%emt 0:00:18]} Qc7 {[%emt 0:00:03]} 8. Bd3 {[%emt 0:00:53]} Qa5 {[%emt 0:01:40]} 9. Bd2 {[%emt 0:01:42]} (9. Qxg7 $2 Qxc3+ (9... Rg8 $2 10. Qf6 $19) 10. Ke2 Rg8 $19) 9... c4 {[%emt 0:00:13]} 10. Be2 {[%emt 0:00:04]} (10. Qxg7 Rg8 11. Qxh7 cxd3 12. Qxd3 Nd7 $17 (12... Rxg2 13. h4 $15)) 10... Rg8 {[%emt 0:00:04] The position is equal.} 11. a4 {[%emt 0:01:37]} Nbc6 {[%emt 0:00:19]} 12. Nf3 {[%emt 0:00:06]} Bd7 {[%emt 0:00:32]} 13. O-O {[%emt 0:00:07]} h6 {[%emt 0:02:19]} 14. Rfb1 {[%emt 0:03:01]} O-O-O {[%emt 0:00:06]} 15. Rb5 {[%emt 0:04:12]} Qc7 {[%emt 0:00:13]} 16. Qf4 {[%emt 0:00:02]} g5 {[%emt 0:06:52]} 17. Qxf7 {[%emt 0:02:28]} Nf5 {[%emt 0:03:28] ...Rdf8 is the strong threat.} 18. g4 {[%emt 0:00:55]} Rdf8 {[%emt 0:00:16]} 19. Qh5 {[%emt 0:00:02]} Be8 {[%emt 0:00:08]} 20. Qh3 $36 {[%emt 0:00:03][%cal Og1h1][%mdl 2048] White is pushing.} h5 {[%emt 0:00:12]} 21. Nxg5 $1 $16 {[%emt 0:02:35]} (21. gxf5 $2 g4 22. Qg3 gxf3 $19) 21... hxg4 {[%emt 0:03:39]} 22. Bxg4 {[%emt 0:01:16]} Qe7 {[%emt 0:01:31]} 23. f4 {[%emt 0:00:58]} Rh8 {[%emt 0:00:40]} 24. Qg2 {[%emt 0:00:05]} Nd8 {[%emt 0:02:11]} 25. Rbb1 {[%emt 0:03:05]} Bg6 {[%emt 0:00:58]} (25... Bh5 $14) 26. Rf1 {[%emt 0:01:39]} (26. Bc1 $16) 26... Kb8 $11 {[%emt 0:00:38]} 27. Bc1 {[%emt 0:00:11] Ba3 would now be deadly.} Rfg8 {[%emt 0:00:38]} 28. Kf2 {[%emt 0:05:50]} (28. Qd2 $11) 28... Nh4 $15 {[%emt 0:00:27]} 29. Qg3 {[%emt 0:00:03]} Bxc2 {[%emt 0:00:05]} 30. Ke1 {[%emt 0:00:32]} Bd3 {[%emt 0:02:09][%mdl 1024] Black has compensation.} 31. Rg1 {[%emt 0:01:32]} Ka8 {[%emt 0:00:11]} 32. Qf2 {[%emt 0:01:01]} Nf5 {[%emt 0:02:18]} 33. Ba3 {[%emt 0:03:12]} ({White should play} 33. Ra2 $11) 33... Qd7 {[%emt 0:00:12]} 34. Bd1 {[%emt 0:00:02]} Nc6 {[%emt 0:01:47]} 35. Kd2 {[%emt 0:01:03]} Rg6 {[%emt 0:00:47]} 36. Kc1 {[%emt 0:00:56]} Qc7 {[%emt 0:01:03]} 37. h3 {[%emt 0:01:48]} Qa5 {[%emt 0:03:03]} 38. Qd2 {[%emt 0:00:02]} b5 {[%emt 0:02:09]} 39. axb5 $1 {[%emt 0:03:02] [#]} Rb8 $1 {[%emt 0:00:02]} 40. Bb2 {[%emt 0:00:01]} (40. bxc6 $2 Qxa3+ 41. Rxa3 Rb1#) 40... Qxb5 {[%emt 0:00:14][%cal Of5e3] aiming for ...Ne3!} 41. Ba4 $1 {[%emt 0:00:01] Really sharp!} Qb7 {[%emt 0:00:59][%cal Of5d4] And now ...Nfxd4! would win.} 42. Kd1 {[%emt 0:00:26]} Na5 {[%emt 0:00:32] A dynamic duo of knights.} (42... Qxb2 43. Bxc6+ Rb7 44. Qxb2) 43. Ba3 {[%emt 0:00:01] [#]} Qh7 $2 {[%emt 0:03:28]} 44. Bb4 $1 $18 {[%emt 0:01:00]} (44. Nxh7 Rxg1+ $11) 44... Qh5+ {[%emt 0:01:21] [#]} 45. Kc1 $1 {[%emt 0:00:39]} Rxb4 {[%emt 0:00:11]} 46. cxb4 {[%emt 0:00:01]} Nxd4 {[%emt 0:00:03]} 47. Kb2 {[%emt 0:01:47]} (47. bxa5 Ne2+ 48. Kd1 Nxg1+ 49. Ke1 Qe2+ (49... Nxh3 50. Bc6+ Kb8 51. Qb2+ Kc8 52. Qb7+ Kd8 53. Nf7#) (49... Nf3+ $2 50. Nxf3 $18) 50. Qxe2 Nxe2 $11) 47... Nab3 {[%emt 0:01:47]} 48. Bxb3 {[%emt 0:00:21]} (48. Qf2 $18 {and White stays clearly on top.} Qe2+ (48... a5 $2 49. Be8 $18) 49. Qxe2 Nxe2 50. Bxb3 Nxg1 51. Rxg1 cxb3 52. Kxb3) 48... Nxb3 $16 {[%emt 0:00:07]} 49. Qf2 {[%emt 0:00:08][%csl Ga1][%cal Rf2a7]} d4 $2 {[%emt 0:01:06][%mdl 8192]} (49... Nxa1 $16 50. Rxa1 Qe2+ 51. Qxe2 Bxe2) 50. Ra3 $2 {[%emt 0:00:50]} (50. Qg2+ Kb8 51. Qc6 Nxa1 52. Nxe6 c3+ 53. Ka3) 50... Qe2+ $18 {[%emt 0:00:18]} 51. Qxe2 {[%emt 0:00:02]} Bxe2 {[%emt 0:00:01]} 52. Rxb3 {[%emt 0:00:36]} cxb3 {[%emt 0:00:01]} 53. Kxb3 {[%emt 0:00:01][%mdl 4096] Endgame. KRB-KRN} Kb7 {[%emt 0:00:14] [#]} 54. Nf3 $1 {[%emt 0:00:41][%mdl 512]} Rh6 {[%emt 0:01:05]} (54... Rxg1 55. Nxg1 Bd1+ 56. Kc4 $18) 55. Nxd4 {[%emt 0:00:49]} Rxh3+ {[%emt 0:00:01]} 56. Kb2 {[%emt 0:00:01]} Rh2 {[%emt 0:00:27]} (56... Bc4 57. Rg6 Rh4) 57. Kc3 {[%emt 0:01:16]} (57. Nxe6 Bc4+ 58. Kc3 Bxe6 $11) (57. Rg7+ $142 Kb6 58. Nxe6) 57... Rh3+ {[%emt 0:00:01] [#]} 58. Kc2 $1 {[%emt 0:00:06]} Rh2 {[%emt 0:00:01]} (58... Bd3+ 59. Kd2 Bc4 60. Rg7+ Kc8) 59. Rg7+ {[%emt 0:00:15]} (59. Nxe6 Bc4+ 60. Kc3 Bxe6 $11) 59... Kb6 {[%emt 0:00:36]} (59... Kc8 $142 60. Kb3 (60. Nxe6 Bc4+ 61. Kc3 Bxe6 $11) (60. Rxa7 Bb5+ 61. Kc1 Rh1+ 62. Kd2 Rh2+ 63. Ke3 Rh3+ 64. Kf2 Bc4 $18) 60... Rh3+ 61. Ka4 Bc4) 60. Nxe2 {[%emt 0:00:02]} Rxe2+ {[%emt 0:00:01] KR-KR} 61. Kd3 {[%emt 0:00:01]} Rf2 {[%emt 0:00:12]} 62. Ke3 {[%emt 0:00:01]} Rb2 {[%emt 0:00:01]} 63. Rg6 {[%emt 0:00:03]} Rb3+ {[%emt 0:00:01]} 64. Kf2 {[%emt 0:00:23]} Rxb4 {[%emt 0:00:13]} 65. Rxe6+ {[%emt 0:00:01]} Kc5 {[%emt 0:00:20]} 66. Kf3 {[%emt 0:00:14]} a5 {[%emt 0:00:04][%cal Ba7a5,Ba5a4,Ba4a3][%mdl 32]} 67. Ra6 {[%emt 0:00:03] White mates.} a4 {[%emt 0:00:21]} 68. e6 {[%emt 0:00:30][%cal Be5e6,Be6e7][%mdl 32]} Kd5 {[%emt 0:00:02]} 69. f5 {[%emt 0:00:40]} a3 {[%emt 0:01:06]} 70. e7 {[%emt 0:00:06] Weighted Error Value: White=0.27 (precise) /Black=0.21 (precise) .  Loses game:     	---       	Black=2      Mistake:       	White=6     	Black=5      Inaccurate:     	White=3     	Black=4      OK:         	White=16    	Black=23     Best:        	White=5     	Black=7      Strong:       	White=6     	Black=1} 1-0

[Event "GRENKE Chess Classic 2024"]
[Site "Karlsruhe"]
[Date "2024.03.28"]
[Round "5.2"]
[White "Keymer, Vincent"]
[Black "Carlsen, Magnus"]
[Result "0-1"]
[ECO "A61"]
[WhiteElo "2738"]
[BlackElo "2830"]
[Annotator "TA"]
[PlyCount "132"]
[EventDate "2024.03.26"]
[EventType "tourn"]
[EventCountry "GER"]
[SourceTitle "playchess.com"]
[Source "ChessBase"]
[SourceQuality "1"]
[TimeControl "2700+10"]

{[%evp 23,132,45,67,45,53,33,49,49,53,54,33,25,55,49,29,50,16,49,32,0,0,0,0,0,0,-34,-28,-36,-24,-58,-50,-66,-85,-78,-67,-226,-220,-220,-219,-241,-244,-248,-241,-255,-247,-256,-242,-270,-263,-264,-270,-275,-263,-277,-270,-275,-267,-283,-283,-283,-283,-314,-283,-386,-386,-376,-328,-338,-350,-354,-353,-332,-323,-360,-357,-368,-360,-345,-283,-355,-324,-439,-440,-626,-608,-610,-614,-655,-580,-629,-582,-675,-658,-670,-702,-29965,-29968,-4149,-4137,-29978,-29979,-29979,-29980,-29980,-29981,-29981,-29982,-29982,-29983,-29983,-29984]} 1. d4 {[%emt 0:00:03]} Nf6 {[%emt 0:00:03]} 2. c4 {[%emt 0:00:02]} e6 {[%emt 0:00:03]} 3. Nc3 {[%emt 0:00:02]} c5 {[%emt 0:00:05]} 4. d5 {[%emt 0:00:07]} exd5 {[%emt 0:00:02]} 5. cxd5 {[%emt 0:00:03]} d6 {[%emt 0:00:03]} 6. Nf3 {[%emt 0:00:25]} g6 {[%emt 0:00:05]} 7. Bf4 {[%emt 0:00:05]} Bg7 {[%emt 0:00:08]} 8. Qa4+ {[%emt 0:00:22]} Bd7 {[%emt 0:00:03]} 9. Qb3 {[%emt 0:00:02]} b5 {[%emt 0:00:02][%cal Bb7b5,Bb5b4][%mdl 32]} 10. Bxd6 {[%emt 0:01:00]} Qb6 {[%emt 0:00:02]} 11. Be5 {[%emt 0:00:39]} O-O {[%emt 0:00:05]} 12. e3 {[%emt 0:02:51]} c4 {[%emt 0:00:52]} 13. Qd1 {[%emt 0:00:29]} b4 {[%emt 0:00:04]} 14. Nb1 {[%emt 0:01:45]} Bb5 {[%emt 0:01:36]} 15. a4 {[%emt 0:06:43] White is slightly better.} Ba6 {[%emt 0:00:03]} 16. Nbd2 $1 {[%emt 0:00:24]} Rc8 {[%emt 0:00:41]} ({Of course not} 16... Nxd5 17. Nxc4 (17. Bxc4 Bxe5 18. Nxe5 Nxe3 $11) 17... Qd8 18. Bxg7 Kxg7 19. Be2 $16) 17. Rc1 {[%emt 0:00:04]} c3 {[%emt 0:00:08]} 18. bxc3 {[%emt 0:00:53]} Bxf1 {[%emt 0:00:04]} 19. Kxf1 {[%emt 0:04:04] And now Bxf6 would win.} Nbd7 {[%emt 0:00:42] [#] White must now prevent ...Qa6+.} 20. Bxf6 {[%emt 0:05:12]} Nxf6 {[%emt 0:05:23]} 21. cxb4 {[%emt 0:02:04]} Qa6+ {[%emt 0:01:57]} 22. b5 {[%emt 0:03:17]} Rxc1 {[%emt 0:00:11]} 23. Qxc1 {[%emt 0:00:02]} Qxa4 {[%emt 0:00:02]} 24. g3 {[%emt 0:02:47]} Qxb5+ {[%emt 0:00:43]} 25. Kg2 {[%emt 0:00:09]} Qxd5 {[%emt 0:01:39]} 26. Qc4 {[%emt 0:01:29]} a5 {[%emt 0:02:05]} (26... Qxc4 {simplifies} 27. Nxc4 a5 28. Nd4 a4) 27. Ra1 {[%emt 0:00:58]} Qxc4 $1 {[%emt 0:00:52]} 28. Nxc4 {[%emt 0:00:04]} a4 {[%emt 0:00:04]} 29. Nb6 $2 {[%emt 0:04:35] [#] Now White is beyond hope.} (29. Nd4 $15) 29... Nd5 $1 {[%emt 0:00:45][%mdl 512]} 30. Rxa4 {[%emt 0:03:03]} Nxb6 {[%emt 0:00:02]} 31. Rb4 {[%emt 0:00:05]} Nd5 {[%emt 0:00:30]} 32. Rb7 {[%emt 0:00:01]} h6 {[%emt 0:01:07]} 33. Rd7 {[%emt 0:00:02]} Nc3 {[%emt 0:00:11]} 34. Rd2 {[%emt 0:00:02]} Bf6 {[%emt 0:00:22]} 35. h4 {[%emt 0:00:03]} Ra2 {[%emt 0:00:18]} 36. Rxa2 {[%emt 0:00:16]} Nxa2 {[%emt 0:00:02]} 37. Ne1 {[%emt 0:00:29]} Nb4 {[%emt 0:00:39]} 38. Nf3 {[%emt 0:00:20]} Bc3 {[%emt 0:00:32]} 39. Ng1 {[%emt 0:00:10]} Kg7 {[%emt 0:00:43]} 40. Kf3 {[%emt 0:00:07]} Kf6 {[%emt 0:00:17]} 41. Ne2 {[%emt 0:00:18]} Be5 {[%emt 0:01:20]} 42. Ng1 {[%emt 0:00:02]} Ke6 {[%emt 0:00:19]} 43. Ne2 {[%emt 0:00:10]} Kd5 {[%emt 0:01:24]} 44. Ng1 {[%emt 0:00:03]} Nd3 {[%emt 0:00:43]} 45. Ke2 {[%emt 0:00:19]} Nc1+ {[%emt 0:00:42]} 46. Kd2 {[%emt 0:00:25]} Na2 {[%emt 0:00:47]} 47. Kd3 {[%emt 0:00:14]} Nc3 {[%emt 0:01:16]} 48. Nf3 {[%emt 0:00:37]} Ne4 {[%emt 0:00:24]} 49. Ke2 {[%emt 0:00:01]} Bg7 {[%emt 0:06:57]} 50. Ne1 {[%emt 0:00:30]} Kc4 {[%emt 0:00:42]} 51. Kf3 {[%emt 0:00:06]} Nc3 {[%emt 0:00:28]} 52. Kg2 {[%emt 0:00:27]} Nd5 {[%emt 0:00:51]} 53. Kf1 {[%emt 0:00:53]} (53. Nf3 $142) 53... Bc3 $19 {[%emt 0:00:21] ...Bxe1 is the strong threat.} 54. Nf3 {[%emt 0:00:02]} Kd3 {[%emt 0:00:02]} 55. Ng1 {[%emt 0:00:01]} Nf6 {[%emt 0:01:18]} 56. Nh3 Be5 {[%emt 0:00:10]} 57. Ng1 {[%emt 0:00:24]} Ne4 {[%emt 0:00:14]} 58. Kg2 {[%emt 0:00:07]} f5 {[%emt 0:01:08]} 59. Nh3 {[%emt 0:01:01]} g5 {[%emt 0:01:51]} 60. hxg5 {[%emt 0:00:03]} hxg5 {[%emt 0:00:02] ( -> ...g4)} 61. f4 {[%emt 0:00:54]} g4 {[%emt 0:00:04] Black mates.} 62. fxe5 {[%emt 0:00:30]} gxh3+ {[%emt 0:00:01]} 63. Kxh3 Ng5+ {[%emt 0:00:02]} 64. Kh4 {[%emt 0:01:12]} Nf3+ {[%emt 0:00:02]} 65. Kh5 {[%emt 0:00:07]} Nxe5 {[%emt 0:00:01]} 66. Kg5 {[%emt 0:00:12]} Ke4 {[%emt 0:00:02] Weighted Error Value: White=0.26 (precise) /Black=0.07 (flawless) .  Mistake:       	White=2     	---        Inaccurate:     	White=5     	---        OK:         	White=14    	Black=25     Best:        	White=1     	Black=2      Strong:       	White=1     	Black=1} ({Weaker is} 66... Kxe3 67. Kxf5 Nf7 68. g4 $11) 0-1

[Event "GRENKE Chess Classic 2024"]
[Site "Karlsruhe"]
[Date "2024.03.28"]
[Round "5.3"]
[White "Fridman, Daniel"]
[Black "Ding, Liren"]
[Result "1/2-1/2"]
[ECO "A05"]
[WhiteElo "2590"]
[BlackElo "2762"]
[Annotator "TA"]
[PlyCount "94"]
[EventDate "2024.03.26"]
[EventType "tourn"]
[EventCountry "GER"]
[SourceTitle "playchess.com"]
[Source "ChessBase"]
[SourceQuality "1"]
[TimeControl "2700+10"]

{[%evp 10,94,2,1,11,0,25,27,25,16,31,22,30,16,24,0,7,-8,-10,-7,-5,0,0,0,7,17,45,21,24,27,24,20,42,24,24,-16,-14,-12,-12,-12,-11,-12,-9,-9,-9,-20,-16,-16,-16,-16,-16,-16,-16,-16,-16,-35,-27,-71,-71,-71,-44,-44,-18,-71,-71,-71,-71,-71,-71,-71,-71,-71,-71,-71,-71,-71,-20,-71,-6,-4,-4,-8,-3,-17,-17,-17,-17]} 1. Nf3 {[%emt 0:00:04]} Nf6 {[%emt 0:00:35]} 2. g3 {[%emt 0:00:02]} d5 {[%emt 0:00:09]} 3. Bg2 {[%emt 0:00:02]} c5 {[%emt 0:00:04]} 4. O-O {[%emt 0:00:04]} e6 {[%emt 0:00:01]} 5. c4 {[%emt 0:00:02]} d4 {[%emt 0:00:01]} 6. e3 {[%emt 0:00:02]} Nc6 {[%emt 0:00:03]} 7. d3 {[%emt 0:00:02]} h6 {[%emt 0:01:48]} 8. exd4 {[%emt 0:00:04]} cxd4 {[%emt 0:00:27] Weiß hat minimalen Vorteil.} 9. Bf4 {[%emt 0:00:02]} Nd7 {[%emt 0:06:38]} 10. Re1 {[%emt 0:00:04]} Be7 {[%emt 0:05:15]} 11. Na3 {[%emt 0:05:00]} O-O {[%emt 0:00:02]} 12. Nc2 {[%emt 0:03:45]} Re8 {[%emt 0:00:58]} 13. Be5 {[%emt 0:02:41]} Ncxe5 {[%emt 0:07:05]} 14. Nxe5 {[%emt 0:02:04]} Nxe5 {[%emt 0:00:04]} 15. Rxe5 {[%emt 0:00:02]} Bd7 {[%emt 0:00:14]} 16. Re4 {[%emt 0:05:22]} Qc7 {[%emt 0:02:11]} 17. Nxd4 {[%emt 0:01:43]} Rad8 {[%emt 0:00:01]} 18. Qb3 {[%emt 0:04:51]} Bc6 {[%emt 0:00:55]} 19. Nxc6 {[%emt 0:00:10]} bxc6 {[%emt 0:00:00]} 20. d4 {[%emt 0:03:25]} Rd7 {[%emt 0:00:37]} 21. Rd1 {[%emt 0:01:05]} Red8 {[%emt 0:00:01]} 22. d5 {[%emt 0:01:45]} cxd5 {[%emt 0:00:19]} 23. cxd5 {[%emt 0:00:02]} Rxd5 {[%emt 0:00:07]} 24. Rxd5 {[%emt 0:02:59]} Rxd5 {[%emt 0:00:01]} 25. Rc4 {[%emt 0:00:08]} Rc5 {[%emt 0:00:01]} 26. Rxc5 {[%emt 0:00:02]} Bxc5 $11 {[%emt 0:00:02][%mdl 4096] Endspiel. KQB-KQB} 27. Qb5 {[%emt 0:01:48]} g6 {[%emt 0:00:50]} 28. Bf3 {[%emt 0:00:28]} Qe5 {[%emt 0:00:11][%cal Oc5f2] [#] Und ...Bxf2+! würde nun gewinnen.} 29. Qe2 {[%emt 0:00:02]} Qd4 {[%emt 0:00:03]} 30. Kg2 {[%emt 0:00:12]} h5 {[%emt 0:00:03]} 31. h4 {[%emt 0:00:43]} Kg7 {[%emt 0:00:01]} 32. a3 {[%emt 0:02:12]} a5 {[%emt 0:00:05]} 33. b4 {[%emt 0:00:03]} axb4 {[%emt 0:00:02]} 34. axb4 {[%emt 0:00:01]} Qxb4 {[%emt 0:00:32]} 35. Qe5+ {[%emt 0:00:08]} Kg8 {[%emt 0:00:01]} (35... Kf8 {sieht schärfer aus.} 36. Qh8+ Ke7 37. Bc6 Qd4) 36. Qe4 {[%emt 0:05:54]} (36. Bxh5 $1 $11 {bleibt in der Remisbreite.} Qb6 (36... gxh5 37. Qg5+ Kh7 38. Qxh5+ Kg7 39. Qg5+ Kh7 40. Qh5+ Kg7 41. Qg5+ Kh7 42. Qh5+ $11) 37. Be2) 36... Qb2 {[%emt 0:00:12]} 37. Qe2 {[%emt 0:00:02]} Qd4 {[%emt 0:00:02]} 38. Bc6 {[%emt 0:00:03]} Kg7 {[%emt 0:00:02]} 39. Bf3 {[%emt 0:00:02]} e5 {[%emt 0:00:14]} 40. Bc6 {[%emt 0:00:13]} f5 {[%emt 0:00:02]} 41. Bb7 {[%emt 0:00:12]} e4 {[%emt 0:00:02]} 42. Bc6 Kf6 {[%emt 0:00:16]} (42... Qc3 $17 {[%cal Oc5f2] Droht ...Bxf2! und aus.} 43. Be8 Qb3) 43. Bb7 {[%emt 0:00:59]} (43. Be8 $11 {hält das Gleichgewicht.}) 43... g5 {[%emt 0:00:04]} (43... Bb6 $17) 44. hxg5+ {[%emt 0:00:06] Die Stellung ist ausgeglichen.} Kxg5 {[%emt 0:00:01]} 45. Bc6 {[%emt 0:00:10]} Qd3 {[%emt 0:00:53]} 46. f4+ {[%emt 0:00:56]} exf3+ {[%emt 0:00:23]} 47. Bxf3 {[%emt 0:00:03]} Qxe2+ {[%emt 0:00:02] Gewichteter Fehlerwert: Weiß=0.11 (sehr präzise) /Schwarz=0.09 (makellos) .  Fehler:       	Weiß=2     	Schwarz=2     Ungenau:       	Weiß=2     	Schwarz=3     OK:         	Weiß=13    	Schwarz=15    Bester:       	Weiß=1     	---} 1/2-1/2